[Event "VIII Open Semana Santa 2024"]
[Site "San Vicente del Raspeig"]
[Date "2024.03.28"]
[Round "3.2"]
[White "Arkell, Keith C"]
[Black "Ivanchuk, Vasyl"]
[Result "0-1"]
[ECO "A73"]
[WhiteElo "2371"]
[BlackElo "2625"]
[Annotator "TA"]
[PlyCount "88"]
[EventDate "2024.03.27"]
[EventType "swiss"]
[EventCountry "ESP"]
[SourceTitle "playchess.com"]
[Source "ChessBase"]
[SourceQuality "1"]
[TimeControl "5400+30"]

{[%evp 24,88,29,15,12,16,9,0,0,0,0,0,0,0,0,-2,14,0,0,-25,0,-11,-19,-6,-4,-59,-52,-49,-40,-69,-33,-63,-8,-12,-4,-23,-15,-17,-18,-41,-51,-42,-57,-47,-61,-96,0,-65,-43,-29,-27,-173,-66,-278,-278,-280,-288,-277,-268,-545,-531,-514,-481,-5385,-660,-29978,-29977]} 1. d4 {[%emt 1:31:00]} e6 {[%emt 0:01:09]} 2. c4 {[%emt 0:00:00]} Nf6 {[%emt 0:00:09]} 3. Nf3 {[%emt 0:00:00]} c5 {[%emt 0:00:03]} 4. d5 {[%emt 0:00:00]} d6 {[%emt 0:00:04]} 5. Nc3 {[%emt 0:00:00]} exd5 {[%emt 0:00:03]} 6. cxd5 {[%emt 0:00:00]} g6 {[%emt 0:00:03]} 7. Nd2 {[%emt 0:00:00]} Bg7 {[%emt 0:00:01]} 8. e4 {[%emt 0:00:00]} O-O {[%emt 0:00:05]} 9. Be2 {[%emt 0:00:00]} Na6 {[%emt 0:00:07][%cal Bb8a6,Ba6b4,Bb4c2][%mdl 32]} 10. O-O {[%emt 0:00:00]} Ne8 {[%emt 0:00:30]} 11. Nc4 {[%emt 0:00:00]} f5 {[%emt 0:00:15]} 12. exf5 {[%emt 0:00:00]} Bxf5 {[%emt 0:00:11]} 13. Be3 {[%emt 0:00:00]} Rb8 {[%emt 0:13:34]} 14. a4 {[%emt 0:00:00]} Nb4 {[%emt 0:00:27]} 15. Qd2 {[%emt 0:00:00]} Nc2 {[%emt 0:20:33] The position is equal.} 16. Bg5 {[%emt 0:00:00]} Bf6 {[%emt 0:04:39]} 17. Bxf6 {[%emt 0:00:00]} Nxf6 {[%emt 0:00:02]} 18. Rad1 {[%emt 0:00:00]} Nd4 {[%emt 0:00:03]} 19. Bd3 {[%emt 0:00:00] Against Ne4} b6 {[%emt 0:03:33]} 20. Bxf5 {[%emt 0:00:00]} Nxf5 {[%emt 0:00:01]} 21. Ne3 {[%emt 0:00:00]} Nd4 {[%emt 0:07:24]} 22. Ne2 {[%emt 0:00:00]} Nxe2+ {[%emt 0:09:01]} 23. Qxe2 {[%emt 0:00:00]} Rb7 {[%emt 0:00:02]} 24. Ng4 {[%emt 0:00:00]} (24. Qa6 $11 Rbf7 25. a5) 24... Re7 {[%emt 0:13:29]} 25. Nxf6+ {[%emt 0:00:00]} Rxf6 {[%emt 0:00:01]} 26. Qa6 {[%emt 0:00:00]} Qe8 {[%emt 0:01:28]} 27. g3 {[%emt 0:00:00]} g5 {[%emt 0:12:08] Black is more active.} (27... Rff7 $15) 28. b4 $11 {[%emt 0:00:00][%cal Bb2b4,Bb4c5][%mdl 32]} Rh6 {[%emt 0:00:17]} 29. bxc5 {[%emt 0:00:00]} Qh5 {[%emt 0:06:32]} 30. h4 {[%emt 0:00:00]} (30. cxb6 $2 Qxh2#) (30. Qc8+ $2 Re8 $19) 30... gxh4 {[%emt 0:00:01]} 31. Rd4 {[%emt 0:00:21]} (31. cxb6 $2 hxg3 32. Qc8+ Re8 $19) 31... Rc7 $40 {[%emt 0:06:24][%mdl 128] [#] ( -> ...hxg3). Black attacks.} 32. g4 {[%emt 0:07:48]} (32. Rxh4 $2 Qxh4 $19) (32. cxb6 hxg3) 32... Rg6 {[%emt 0:00:46]} 33. Qe2 {[%emt 0:04:28] Strongly threatening cxd6.} bxc5 {[%emt 0:01:35]} 34. Rf4 {[%emt 0:01:05] Intending Qe8+ and mate.} Kg7 {[%emt 0:01:10]} ({Not} 34... Qxd5 35. Qe8+ Kg7 36. Qf8#) ({Black should play} 34... Rc8 $1 $17 35. Qf3 c4) 35. Qb2+ {[%emt 0:02:32]} (35. Re1 $1 $11 Rb7 (35... Qxd5 36. Qe8 $14) 36. Qf3) 35... Kh6 {[%emt 0:01:05]} 36. Qd2 {[%emt 0:00:17]} Qg5 {[%emt 0:00:28] [#] Hoping for ...Rf7.} 37. Rd1 {[%emt 0:00:02]} (37. Re1 $11 {and White stays safe.}) 37... c4 {[%emt 0:00:54]} (37... Rb7 $19 {[%cal Ob7b4] aiming for ...Rb4!} 38. f3 Rb2 39. Qxb2 Qxf4) 38. Rd4 $2 {[%emt 0:00:33]} ({White should try} 38. Qd4 $15) 38... c3 $19 {[%emt 0:00:32]} 39. Qxg5+ {[%emt 0:00:17]} Kxg5 {[%emt 0:00:29] KRR-KRR} 40. Rc1 {[%emt 0:01:04]} Rg8 {[%emt 0:00:25]} 41. Kh2 $2 {[%emt 0:00:54]} (41. Rc2) 41... c2 {[%emt 0:00:34]} 42. f3 {[%emt 0:00:34]} Rc3 {[%emt 0:00:36][%cal Og8c8]} 43. Rb4 {[%emt 0:00:26]} (43. a5 $142) 43... Rgc8 {[%emt 0:00:15]} (43... Rxf3 44. Rxc2 Rg7 45. Rb8 $17) (43... Re8 $142 44. Kg1 Re2 (44... Rxf3 $2 45. Rxc2 Re7 46. Rf2 $19)) 44. Kg2 {[%emt 0:00:32]} Rd3 {[%emt 0:00:31] Repels Rd4.   Weighted Error Value: White=0.65/Black=0.36.  Loses game:     	White=1     	---        Mistake:       	White=5     	Black=4      Inaccurate:     	White=3     	Black=1      OK:         	White=13    	Black=11     Best:        	White=1     	Black=3} 0-1

[Event "VIII Open Semana Santa 2024"]
[Site "San Vicente del Raspeig"]
[Date "2024.03.28"]
[Round "3.3"]
[White "Yuffa, Daniil"]
[Black "Dauner, Benedikt"]
[Result "1-0"]
[ECO "D38"]
[WhiteElo "2606"]
[BlackElo "2366"]
[Annotator "TA"]
[PlyCount "81"]
[EventDate "2024.03.27"]
[EventType "swiss"]
[EventCountry "ESP"]
[SourceTitle "playchess.com"]
[Source "ChessBase"]
[SourceQuality "1"]
[TimeControl "5400+30"]

{[%evp 12,81,32,22,12,29,25,20,25,0,20,0,33,37,23,27,47,50,66,66,68,66,59,68,77,71,63,75,114,51,109,103,102,99,160,170,321,308,323,307,293,257,251,260,435,439,458,461,393,265,477,441,507,475,493,481,579,577,613,603,716,697,684,739,715,677,755,658,912,865,685,421]} 1. d4 {[%emt 0:00:10]} Nf6 {[%emt 0:02:41]} 2. c4 {[%emt 0:00:16]} e6 {[%emt 0:00:05]} 3. Nf3 {[%emt 0:00:10]} d5 {[%emt 0:00:13]} 4. Nc3 {[%emt 0:00:21]} Nbd7 {[%emt 0:00:40]} 5. cxd5 {[%emt 0:00:26]} exd5 {[%emt 0:00:06]} 6. Bg5 {[%emt 0:00:08][%cal Bc1g5,Bg5h4,Bh4g3][%mdl 32]} Bb4 {[%emt 0:00:24]} 7. e3 {[%emt 0:01:30]} h6 {[%emt 0:06:38]} 8. Bh4 {[%emt 0:00:05]} g5 {[%emt 0:00:10]} 9. Bg3 {[%emt 0:00:05]} Ne4 {[%emt 0:00:05] The position is equal.} 10. Qb3 {[%emt 0:00:10][%csl LRb4,LRd5]} (10. Nd2 {simplifies} Nxg3 11. hxg3 c6 12. a3) 10... c5 {[%emt 0:05:51]} 11. dxc5 {[%emt 0:00:35]} Qa5 {[%emt 0:03:17]} 12. a3 $1 {[%emt 0:03:07]} Bxc3+ {[%emt 0:02:35]} 13. bxc3 {[%emt 0:00:11]} Qxc5 {[%emt 0:03:54][%cal Oe8g8]} 14. Bd3 {[%emt 0:18:04]} Qxc3+ {[%emt 0:06:18]} 15. Qxc3 {[%emt 0:00:04]} Nxc3 {[%emt 0:00:05] Excellent horsemanship.} 16. Rc1 {[%emt 0:03:46]} Ne4 {[%emt 0:08:28]} 17. Bxe4 $1 {[%emt 0:00:43]} dxe4 {[%emt 0:00:06] Black is weak on the dark squares} 18. Nd4 {[%emt 0:00:08]} O-O {[%emt 0:14:04]} 19. h4 {[%emt 0:07:56]} b6 {[%emt 0:06:16][%cal Bb7b6,Bb6b5][%mdl 32] White now steadily converts the win.} 20. Bd6 {[%emt 0:14:59] Wards off Nc5} (20. hxg5 $16 {Threatens to win with Rc6.} Nc5 21. Kd2 hxg5 22. Rh5) 20... Re8 {[%emt 0:01:58] [#]} (20... Nc5 $1 $14) 21. hxg5 $1 $16 {[%emt 0:05:28]} hxg5 {[%emt 0:00:29]} 22. Rh5 $36 {[%emt 0:03:09][%mdl 2048] White has strong initiative.} f6 {[%emt 0:02:13] [#]} (22... Ne5 $142) 23. Rc7 $1 {[%emt 0:01:33][%mdl 1024] White has strong compensation. White is much more active.} a6 $2 {[%emt 0:05:40]} (23... Ne5) 24. Nf5 $18 {[%emt 0:05:10]} b5 {[%emt 0:04:07]} 25. g4 {[%emt 0:11:25] Black must now prevent Be7.} (25. Ne7+ Kg7 26. g4 (26. Nxc8 Kg6 $18) 26... Rxe7 27. Bxe7 a5 $18) 25... a5 {[%emt 0:01:39]} 26. Ne7+ {[%emt 0:03:55]} Rxe7 {[%emt 0:01:04]} 27. Bxe7 {[%emt 0:00:05]} Kg7 $2 {[%emt 0:11:27] [#]} (27... b4 {was worth a try.} 28. a4 (28. axb4 axb4 29. Kd2 b3 $18) 28... Kf7) 28. Bxf6+ $1 {[%emt 0:02:10][%mdl 512]} Kxf6 {[%emt 0:01:05]} 29. Rh8 {[%emt 0:00:18]} Ne5 {[%emt 0:00:21]} 30. Rf8+ {[%emt 0:02:17]} ({Resist} 30. Rcxc8 Rxc8 31. Rxc8 b4 $18) 30... Kg6 $2 {[%emt 0:02:07]} (30... Ke6) 31. Rfxc8 {[%emt 0:00:52][%mdl 4096] Endgame. KRR-KRN. White is clearly winning.} ({Don't take} 31. Rcxc8 Rxc8 32. Rxc8 b4 $18) 31... Ra6 {[%emt 0:00:25]} 32. Ke2 {[%emt 0:00:44]} b4 {[%emt 0:02:13]} 33. Rc5 {[%emt 0:01:11]} Re6 {[%emt 0:00:05]} 34. a4 {[%emt 0:01:20]} b3 {[%emt 0:00:23]} 35. Rb5 {[%emt 0:02:41] Repels Rb6} Nd3 {[%emt 0:01:32]} 36. Rxb3 {[%emt 0:05:08]} Rf6 {[%emt 0:00:27]} 37. Rxd3 {[%emt 0:01:55]} exd3+ {[%emt 0:00:07]} 38. Kxd3 {[%emt 0:00:07]} Rxf2 {[%emt 0:00:19]} 39. Rc6+ {[%emt 0:00:03]} Kg7 {[%emt 0:00:34]} 40. Rc5 {[%emt 0:00:12][%csl LRa5,LRg5]} Kg6 {[%emt 0:00:07]} 41. Ke4 {[%emt 0:00:37] Weighted Error Value: White=0.09 (flawless) /Black=0.37.  Mistake:       	White=1     	Black=5      Inaccurate:     	White=1     	Black=2      OK:         	White=12    	Black=8      Best:        	White=4     	Black=2      Strong:       	White=4     	---} 1-0

[Event "VIII Open Semana Santa 2024"]
[Site "San Vicente del Raspeig"]
[Date "2024.03.28"]
[Round "3.4"]
[White "Tabuenca Mendataurigoitia, Daniel"]
[Black "Piorun, Kacper"]
[Result "0-1"]
[ECO "B10"]
[WhiteElo "2365"]
[BlackElo "2599"]
[Annotator "TA"]
[PlyCount "64"]
[EventDate "2024.03.27"]
[EventType "swiss"]
[EventCountry "ESP"]
[SourceTitle "playchess.com"]
[Source "ChessBase"]
[SourceQuality "1"]
[TimeControl "5400+30"]

{[%evp 9,64,0,0,0,2,0,0,0,0,0,0,0,8,-17,0,0,0,-10,15,0,18,22,29,0,39,-104,-59,-410,-333,-482,-493,-451,-401,-485,-507,-525,-530,-534,-517,-978,-960,-947,-948,-948,-933,-925,-933,-919,-937,-937,-922,-900,-891,-1171,-1109,-1399,-1510]} 1. e4 {[%emt 0:00:02]} c6 {[%emt 0:00:06]} 2. Nf3 {[%emt 0:00:23]} d5 {[%emt 0:00:08]} 3. d3 {[%emt 0:00:07]} e6 {[%emt 0:01:32]} 4. Qe2 {[%emt 0:02:49]} Nf6 {[%emt 0:00:05]} 5. g3 {[%emt 0:00:20]} Be7 {[%emt 0:00:22]} 6. Bg2 {[%emt 0:00:22]} c5 {[%emt 0:01:20]} 7. O-O {[%emt 0:00:52]} Nc6 {[%emt 0:00:02]} 8. e5 {[%emt 0:01:06] The position is equal.} Nd7 {[%emt 0:00:33][%cal Bf6d7,Bd7f8,Bf8g6][%mdl 32]} 9. c4 {[%emt 0:00:17]} d4 {[%emt 0:02:41]} 10. h4 {[%emt 0:03:42][%cal Bh2h4,Bh4h5][%mdl 32]} h6 {[%emt 0:09:26]} 11. h5 {[%emt 0:05:20]} b6 {[%emt 0:12:02]} 12. Bf4 {[%emt 0:06:12]} Bb7 {[%emt 0:04:16]} 13. Nbd2 {[%emt 0:05:53]} Nf8 {[%emt 0:00:22]} 14. Ne4 {[%emt 0:03:32]} g5 {[%emt 0:00:17]} 15. hxg6 {[%emt 0:16:56]} Nxg6 {[%emt 0:00:07]} 16. Qd2 {[%emt 0:03:53]} Qc7 {[%emt 0:08:48]} 17. Bxh6 {[%emt 0:09:15]} (17. a3 $14 {keeps the upper hand.}) 17... Ncxe5 {[%emt 0:12:10]} 18. Bg7 $2 {[%emt 0:07:47][%mdl 8192] Loses the game.} (18. Nxe5 $15 Qxe5 (18... Nxe5 19. Bf4 $11) 19. Nd6+ Qxd6 (19... Bxd6 20. Bxb7 Rb8 21. Bc6+ Ke7 22. Rae1 $15) 20. Bxb7) 18... Nxf3+ $19 {[%emt 0:03:54]} 19. Bxf3 {[%emt 0:00:04]} Rh7 {[%emt 0:00:29]} 20. Bf6 {[%emt 0:01:20]} O-O-O {[%emt 0:00:10] [#] Hoping for ...Bxf6.} 21. Qg5 {[%emt 0:05:29]} ({And not} 21. Ng5 Bxf3 22. Nxf3 Bxf6 $19) 21... Rdh8 {[%emt 0:03:14] Black is clearly winning.} 22. Rfe1 {[%emt 0:11:38]} Bxf6 {[%emt 0:01:45]} 23. Qxf6 {[%emt 0:00:53]} Ne5 {[%emt 0:00:23]} 24. Nd6+ {[%emt 0:01:27]} (24. Bg2 $142) 24... Qxd6 {[%emt 0:00:06]} 25. Bxb7+ {[%emt 0:00:04]} Kxb7 {[%emt 0:00:06]} 26. Rxe5 {[%emt 0:00:14]} Rh1+ {[%emt 0:00:42]} 27. Kg2 {[%emt 0:00:02]} Qc6+ {[%emt 0:00:21]} (27... Rxa1 28. Qxh8 f5 (28... Rxa2 29. Qf6 $17) 29. f3 $17) 28. Re4 {[%emt 0:00:11]} R8h2+ {[%emt 0:03:54]} 29. Kf3 {[%emt 0:00:02]} Rxa1 {[%emt 0:00:07]} 30. Qxf7+ {[%emt 0:00:07]} Ka6 {[%emt 0:00:10] [#] Threatens to win with ...Rf1.} 31. Kg4 {[%emt 0:01:10]} Rf1 {[%emt 0:00:56]} 32. f4 {[%emt 0:00:22]} Rxb2 {[%emt 0:00:52] Weighted Error Value: White=0.82/Black=0.10 (very precise) .  Loses game:     	White=1     	---        Mistake:       	White=2     	---        Inaccurate:     	White=2     	Black=2      OK:         	White=6     	Black=6      Best:        	---       	Black=3} 0-1

[Event "VIII Open Semana Santa 2024"]
[Site "San Vicente del Raspeig"]
[Date "2024.03.28"]
[Round "3.5"]
[White "Kourkoulos-Arditis, Stamatis"]
[Black "Serarols Mabras, Bernat"]
[Result "1-0"]
[ECO "B12"]
[WhiteElo "2556"]
[BlackElo "2360"]
[Annotator "TA"]
[PlyCount "71"]
[EventDate "2024.03.27"]
[EventType "swiss"]
[EventCountry "ESP"]
[SourceTitle "playchess.com"]
[Source "ChessBase"]
[SourceQuality "1"]
[TimeControl "5400+30"]

{[%evp 11,71,17,30,6,42,31,28,29,43,42,43,41,50,29,72,73,72,72,68,74,112,92,147,145,127,135,148,141,153,157,162,158,217,213,201,200,256,265,325,321,331,312,332,301,509,505,514,514,543,523,631,634,656,657,629,518,543,520,516,505,2233,2231]} 1. e4 {[%emt 0:02:20]} c6 {[%emt 0:00:39]} 2. d4 {[%emt 0:00:05]} d5 {[%emt 0:00:17]} 3. e5 {[%emt 0:00:06]} Bf5 {[%emt 0:00:23]} 4. Nf3 {[%emt 0:00:04]} e6 {[%emt 0:01:15]} 5. Be2 {[%emt 0:00:08]} Ne7 {[%emt 0:00:41]} 6. O-O {[%emt 0:00:36]} h6 {[%emt 0:00:05][%cal Oc6c5]} 7. a4 {[%emt 0:04:33]} a5 {[%emt 0:00:44]} 8. Nbd2 {[%emt 0:00:32]} Bh7 {[%emt 0:00:45]} 9. Nb3 {[%emt 0:00:45] White has an edge.} Nd7 {[%emt 0:03:42]} 10. Bd2 {[%emt 0:02:08]} Nf5 {[%emt 0:06:38]} 11. Qe1 {[%emt 0:01:35]} b6 {[%emt 0:01:50]} 12. c4 {[%emt 0:00:24]} Be7 {[%emt 0:07:02]} 13. cxd5 {[%emt 0:09:07] White stays focused until the end.} cxd5 {[%emt 0:02:54]} 14. Bb5 {[%emt 0:01:42]} O-O {[%emt 0:01:03]} 15. Qe2 {[%emt 0:01:30]} Qc7 {[%emt 0:17:47]} 16. Rac1 {[%emt 0:01:32]} Qa7 {[%emt 0:02:13]} (16... Qd8 $142) 17. g4 $16 {[%emt 0:06:08]} Nh4 {[%emt 0:01:52]} 18. Nxh4 {[%emt 0:00:05]} Bxh4 {[%emt 0:00:04]} 19. f4 {[%emt 0:01:29][%cal Bf2f4,Bf4f5][%mdl 32] [#] g5 is the strong threat.} Be7 {[%emt 0:12:07]} 20. f5 $36 {[%emt 0:03:05][%mdl 2048] White has strong initiative. White is more active.} Rfc8 {[%emt 0:06:04]} 21. Qf3 {[%emt 0:00:25]} Kh8 {[%emt 0:06:17]} (21... Rxc1 $16 {was called for.} 22. Nxc1 (22. Rxc1 Nf8 $16) 22... Nf8) 22. Qh3 $18 {[%emt 0:07:06]} Rxc1 {[%emt 0:06:32]} 23. Nxc1 {[%emt 0:02:28][%cal Bb3c1,Bc1e2,Be2g3][%mdl 32]} ({Don't take} 23. Rxc1 Nf8 24. f6 gxf6) 23... exf5 {[%emt 0:04:45]} 24. gxf5 {[%emt 0:01:52]} f6 {[%emt 0:00:07]} 25. e6 {[%emt 0:10:31] Black is weak on the light squares} Nb8 {[%emt 0:00:26]} 26. Ne2 {[%emt 0:02:31]} Na6 {[%emt 0:01:50]} 27. Rc1 {[%emt 0:00:15] Threatens to win with Nf4.} Nb4 $2 {[%emt 0:01:38]} (27... Nc7 28. Bc6 Rd8) 28. Bf4 {[%emt 0:01:00] White is clearly winning.} Na6 {[%emt 0:02:11] Prevents Rc7} 29. Ng3 {[%emt 0:02:18]} Rg8 {[%emt 0:02:41]} 30. Qf1 {[%emt 0:00:37]} Ra8 {[%emt 0:00:14]} 31. Bxa6 {[%emt 0:06:47]} Qxa6 {[%emt 0:00:08]} 32. Qxa6 {[%emt 0:00:03]} Rxa6 {[%emt 0:00:10]} 33. Rc7 {[%emt 0:00:31]} Bb4 {[%emt 0:02:06]} 34. e7 {[%emt 0:00:19]} Ra8 {[%emt 0:00:03] Prevents Rc8+} 35. Rd7 {[%emt 0:00:07] [#] White threatens Rd8+ and mate.} Rg8 {[%emt 0:00:05]} (35... Bxe7 $142 36. Rxe7 Rd8) 36. Bd6 {[%emt 0:00:08] Weighted Error Value: White=0.08 (flawless) /Black=0.34.  Mistake:       	---       	Black=4      Inaccurate:     	---       	Black=3      OK:         	White=15    	Black=5      Best:        	White=4     	Black=3} ({Less strong is} 36. Rxd5 Bxe7 37. Rd7 Bb4 $11) 1-0

[Event "VIII Open Semana Santa 2024"]
[Site "San Vicente del Raspeig"]
[Date "2024.03.28"]
[Round "3.6"]
[White "Labiano Hernandez, Juan"]
[Black "Adhiban, B.."]
[Result "1/2-1/2"]
[ECO "B55"]
[WhiteElo "2362"]
[BlackElo "2541"]
[Annotator "RC"]
[PlyCount "42"]
[EventDate "2024.03.27"]
[EventType "swiss"]
[EventCountry "ESP"]
[SourceTitle "playchess.com"]
[Source "ChessBase"]
[SourceQuality "1"]
[TimeControl "5400+30"]

1. e4 {[%emt 0:00:09]} c5 {[%emt 0:00:08]} 2. Nf3 {[%emt 0:00:15]} d6 {[%emt 0:00:04]} 3. d4 {[%emt 0:00:07]} cxd4 {[%emt 0:00:04]} 4. Nxd4 {[%emt 0:00:05]} Nf6 {[%emt 0:00:04]} 5. f3 {[%emt 0:00:07]} e5 {[%emt 0:00:20]} 6. Nb3 {[%emt 0:00:06]} Be7 {[%emt 0:00:12]} 7. c4 {[%emt 0:00:07]} a5 {[%emt 0:00:15]} 8. Be3 {[%emt 0:01:32]} Nc6 {[%emt 0:00:27]} 9. Nc3 {[%emt 0:00:20]} O-O {[%emt 0:01:24]} 10. Be2 {[%emt 0:01:47]} Nh5 {[%emt 0:03:45]} 11. O-O {[%emt 0:01:31]} a4 {[%emt 0:06:27]} 12. Nd2 {[%emt 0:00:59]} Bg5 {[%emt 0:01:11]} 13. Bf2 {[%emt 0:09:36]} a3 {[%emt 0:06:51]} 14. b3 {[%emt 0:05:29]} Qa5 {[%emt 0:06:15]} 15. Ndb1 {[%emt 0:03:17]} Nd4 {[%emt 0:09:50]} 16. Nd5 {[%emt 0:08:54]} Nf4 {[%emt 0:02:34]} 17. Nxf4 {[%emt 0:06:16]} Bxf4 {[%emt 0:00:09]} 18. Bd3 {[%emt 0:05:38]} Nc6 {[%emt 0:21:45]} 19. Be2 {[%emt 0:08:11]} Nd4 {[%emt 0:22:01]} 20. Bd3 {[%emt 0:00:06]} Nc6 {[%emt 0:00:36]} 21. Be2 {[%emt 0:00:04]} Nd4 {[%emt 0:00:45]} 1/2-1/2

[Event "VIII Open Semana Santa 2024"]
[Site "San Vicente del Raspeig"]
[Date "2024.03.28"]
[Round "3.7"]
[White "Makhnev, Denis"]
[Black "Tippa, Aswath Srisai"]
[Result "1/2-1/2"]
[ECO "D52"]
[WhiteElo "2516"]
[BlackElo "1647"]
[Annotator "TA"]
[PlyCount "102"]
[EventDate "2024.03.27"]
[EventType "swiss"]
[EventCountry "ESP"]
[SourceTitle "playchess.com"]
[Source "ChessBase"]
[SourceQuality "1"]
[TimeControl "5400+30"]

{[%evp 19,102,25,18,12,20,27,27,11,18,0,32,27,16,12,41,0,0,0,0,-25,-18,-14,-2,-20,-30,-17,-12,-24,-18,-22,-4,-44,20,11,31,0,0,0,0,0,0,0,0,0,0,0,0,0,0,0,0,0,0,0,0,0,0,0,0,0,0,0,8,0,8,8,8,0,0,-8,0,0,0,0,0,-83,-95,-80,-51,-63,0,-67,0,-52,0]} 1. d4 {[%emt 1:31:00]} d5 {[%emt 0:00:26]} 2. Nf3 {[%emt 0:00:00][%cal Bg1f3,Bf3d2,Bd2b3][%mdl 32]} Nf6 {[%emt 0:00:08]} 3. c4 {[%emt 0:00:00]} e6 {[%emt 0:00:05]} 4. Nc3 {[%emt 0:00:00]} c6 {[%emt 0:00:12]} 5. Bg5 {[%emt 0:00:00]} Nbd7 {[%emt 0:00:07]} 6. e3 {[%emt 0:00:00]} Qa5 {[%emt 0:00:06]} 7. Nd2 {[%emt 0:00:00]} Bb4 {[%emt 0:00:07]} 8. Qc2 {[%emt 0:00:00]} O-O {[%emt 0:00:06]} 9. Be2 {[%emt 0:00:00]} c5 {[%emt 0:00:06]} 10. O-O {[%emt 0:00:00]} cxd4 {[%emt 0:00:16]} 11. Nb3 {[%emt 0:00:00]} Qb6 {[%emt 0:00:04]} 12. exd4 {[%emt 0:00:00] Threatens to win with c5.} dxc4 {[%emt 0:00:50]} 13. Bxc4 {[%emt 0:00:00] White has an edge.} a6 {[%emt 0:08:57]} 14. Ne4 {[%emt 0:00:00]} Qc6 {[%emt 0:08:40]} 15. Nxf6+ {[%emt 0:00:00]} Nxf6 {[%emt 0:00:21]} 16. Bxf6 {[%emt 0:00:00][%cal Oa2a3] [#] a3! would now be deadly.} gxf6 {[%emt 0:00:09]} (16... b5 $5 17. Qd3 (17. Bxg7 Kxg7 18. Bd3 Qxc2 $11) 17... Bb7 $11 (17... bxc4 18. Qg3 $16)) 17. Qe2 {[%emt 0:00:00]} b5 {[%emt 0:03:06]} 18. Qg4+ {[%emt 0:00:00]} Kh8 {[%emt 0:00:08]} 19. Be2 {[%emt 0:00:00] Hoping for Bf3.} Bb7 {[%emt 0:03:45]} 20. Rfc1 {[%emt 0:00:00]} Qe4 {[%emt 0:09:12]} (20... Rg8 {simplifies} 21. Qxg8+ Rxg8 22. Rxc6 Bxc6 23. g3 Rd8) 21. Nc5 {[%emt 0:00:00]} (21. Qxe4 {simplifies} Bxe4 22. Nc5 f5 23. a3) 21... Qxg4 {[%emt 0:00:49]} 22. Bxg4 {[%emt 0:00:00]} Rg8 {[%emt 0:16:30] [#] And now ...Bxc5 would win.} 23. Nxb7 {[%emt 0:00:00]} Rxg4 {[%emt 0:00:08]} 24. a3 {[%emt 0:00:00] h3 is the strong threat.} Bf8 {[%emt 0:01:01]} 25. Rc7 {[%emt 0:00:00]} Kg7 {[%emt 0:02:12]} (25... Rxd4 $15 26. Rxf7 Kg8) 26. Rd1 {[%emt 0:00:00]} Rg5 {[%emt 0:00:18]} 27. Rd3 {[%emt 0:00:00]} Rd5 {[%emt 0:09:59]} 28. Kf1 {[%emt 0:00:00]} f5 {[%emt 0:01:19]} 29. Ke2 {[%emt 0:00:00]} Kf6 {[%emt 0:00:41]} 30. Nc5 {[%emt 0:00:00]} Rad8 {[%emt 0:02:10] Repels Nd7+} 31. Nxa6 {[%emt 0:00:00]} Rxd4 {[%emt 0:02:23]} 32. Rxd4 {[%emt 0:00:00]} Rxd4 $11 {[%emt 0:00:06][%mdl 4096] Endgame. KRB-KRN} 33. Rb7 {[%emt 0:00:00]} Rd5 {[%emt 0:05:29]} 34. Nc7 {[%emt 0:00:00][%csl LRb5,LRd5]} Rd7 {[%emt 0:00:56]} 35. Ne8+ {[%emt 0:00:00]} Ke7 {[%emt 0:00:16]} 36. Rxd7+ {[%emt 0:00:00]} (36. Rxb5 $2 {is the wrong capture.} Kxe8 37. g3 Rc7 38. Rb8+ Ke7 $19) 36... Kxd7 {[%emt 0:00:08] KB-KN} 37. Nf6+ {[%emt 0:00:00]} Ke7 {[%emt 0:00:18]} 38. Nh5 {[%emt 0:00:00]} Kd6 {[%emt 0:00:38]} 39. Kd3 {[%emt 0:00:00]} Be7 {[%emt 0:01:33]} 40. h3 {[%emt 0:01:09]} Bh4 {[%emt 0:01:13]} 41. f3 {[%emt 0:02:23]} Bd8 {[%emt 0:00:38]} 42. b3 {[%emt 0:00:33]} Kc5 {[%emt 0:00:51]} 43. Kc3 {[%emt 0:01:43]} Bc7 {[%emt 0:01:33]} 44. b4+ {[%emt 0:01:26]} Kc6 {[%emt 0:00:48]} 45. Kd4 {[%emt 0:00:10]} Kd6 {[%emt 0:00:27]} 46. Ng3 {[%emt 0:01:43]} Bd8 {[%emt 0:02:50]} 47. Ne2 {[%emt 0:01:25]} (47. Nh5 $11 {remains equal.}) 47... Bf6+ $17 {[%emt 0:00:07]} 48. Kd3 {[%emt 0:00:03]} Kd5 {[%emt 0:00:33]} 49. Nf4+ {[%emt 0:00:05]} Kd6 {[%emt 0:00:17]} 50. Ne2 $1 {[%emt 0:00:05]} Kd5 {[%emt 0:00:05]} 51. Nf4+ {[%emt 0:00:04]} Kd6 {[%emt 0:00:07] Weighted Error Value: White=0.10 (very precise) /Black=0.10 (very precise) .  Mistake:       	White=1     	Black=2      Inaccurate:     	White=3     	Black=3      OK:         	White=11    	Black=17     Best:        	White=1     	Black=2      Strong:       	White=1     	---} ({Black should try} 51... Ke5 $15 52. Ne2 Kd6) 1/2-1/2